fUSD/lending_fUSD_20251223
["ID","MTS","AMOUNT","RATE_DAILY","PERIOD"]
[399596161,1766526645742,-300.0,0.00038496,2]
[399596162,1766526645752,-300.0,0.00038496,2]
[399596163,1766526645762,-300.0,0.00038496,2]
[399596164,1766526645772,-300.0,0.00038496,2]
[399596165,1766526645781,-300.0,0.00038496,2]
[399596166,1766526645791,-302.70372267,0.00038496,2]
[399596167,1766526645801,-300.0,0.00038496,2]
[399596168,1766526645812,-576.69074198,0.00038496,2]
[399596169,1766526645822,-300.0,0.00038496,2]
[399596170,1766526645832,-302.84804102,0.00038496,2]
[399596171,1766526645842,-300.0,0.00038496,2]
[399596172,1766526645851,-303.87663326,0.00038496,2]
[399596173,1766526645861,-300.0,0.00038496,2]
[399596174,1766526645872,-300.0,0.00038496,2]
[399596175,1766526645882,-367.4866174,0.00038496,2]
[399596176,1766526645891,-300.0,0.00038496,2]
[399596177,1766526645901,-300.0,0.00038496,2]
[399596178,1766526645911,-303.09346441,0.00038496,2]
[399596179,1766526645920,-300.0,0.00038496,2]
[399596181,1766526645929,-300.0,0.00038496,2]
[399596183,1766526645939,-1081.39229069,0.00038496,2]
[399596184,1766526645949,-300.0,0.00038496,2]
[399596185,1766526645959,-300.0,0.00038496,2]
[399596186,1766526645969,-300.0,0.00038496,2]
[399596187,1766526645978,-594.49199649,0.00038496,2]
[399596188,1766526645988,-363.62770921,0.00038496,2]
[399596189,1766526645998,-300.0,0.00038496,2]
[399596190,1766526646008,-300.0,0.00038496,2]
[399596191,1766526646019,-300.0,0.00038496,2]
[399596192,1766526646036,-300.0,0.00038496,2]
[399596193,1766526646046,-300.0,0.00038496,2]
[399596194,1766526646057,-300.0,0.00038496,2]
[399596195,1766526646067,-302.70372267,0.00038496,2]
[399596196,1766526646079,-300.0,0.00038496,2]
[399596197,1766526646089,-576.69074198,0.00038496,2]
[399596198,1766526646099,-300.0,0.00038496,2]
[399596199,1766526646110,-381.6,0.000385,14]
[399596200,1766526646119,-150.0,0.0003858,7]
[399596201,1766526646129,-150.0,0.00038581,7]
[399596202,1766526646139,-395.96,0.000386,30]
[399596203,1766526646148,-150.0,0.000386,7]
[399596204,1766526646158,-150.0,0.0003861,30]
[399596205,1766526646168,-150.0,0.0003861,30]
[399596206,1766526646177,-150.0,0.00038643,7]
[399596207,1766526646187,-150.0,0.00038669,7]
[399596208,1766526646197,-150.0,0.00038669,7]
[399596209,1766526646207,-322.777,0.00038671,30]
[399596210,1766526646217,-150.0,0.00038672,7]
[399596211,1766526646227,-150.0,0.00038676,7]
[399596212,1766526646237,-279.29961549,0.0003869,2]
[399596213,1766526646247,-459.45,0.000387,30]
[399596214,1766526646256,-172.3568209,0.000387,5]
[399596215,1766526646267,-299.12,0.000387,2]
[399596216,1766526646277,-150.0,0.0003871,7]
[399596217,1766526646287,-171.0,0.00038745,120]
[399596219,1766526646297,-150.0,0.00038758,7]
[399596221,1766526646307,-150.0,0.00038763,7]
[399596222,1766526646316,-200.0,0.00038773,20]
[399596223,1766526646326,-150.0,0.00038796,7]
[399596224,1766526646336,-150.0,0.00038819,7]
[399596225,1766526646346,-285.9,0.00038838,2]
[399596226,1766526646356,-150.0,0.00038847,7]
[399596227,1766526646366,-150.0,0.00038847,7]
[399596228,1766526646375,-150.0,0.00038854,7]
[399596229,1766526646385,-150.0,0.00038862,7]
[399596230,1766526646395,-322.777,0.00038871,30]
[399596231,1766526646405,-33501.2974,0.000389,2]
[399596232,1766526646421,-1000.0,0.000389,120]
[399596233,1766526646432,-1000.0,0.000389,2]
[399596234,1766526646442,-10000.0,0.000389,2]
[399596235,1766526646453,-600.0,0.00038904,30]
[399596236,1766526646464,-423.2,0.00038923,6]
[399596237,1766526646475,-150.0,0.00038929,7]
[399596238,1766526646485,-150.0,0.00038936,7]
[399596239,1766526646495,-150.0,0.00038945,7]
[399596240,1766526646506,-150.0,0.00038949,7]
[399596241,1766526646516,-593.75870283,0.00038999,30]
[399596242,1766526646526,-3984.00540742,0.00038999,2]
[399596243,1766526646536,-300.0,0.00038999,10]
[399596244,1766526646546,-666.0,0.00038999,30]
[399596245,1766526646556,-1000.0,0.00038999,29]
[399596246,1766526646567,-1000.0,0.00038999,19]
[399596247,1766526646577,-1000.0,0.00038999,17]
[399596248,1766526646587,-221.7,0.00039,19]
[399596249,1766526646598,-186.82,0.00039,39]
[399596250,1766526646608,-800.0,0.00039,14]
[399596251,1766526646618,-800.0,0.00039,14]
[399596252,1766526646629,-800.0,0.00039,14]
[399596253,1766526646639,-800.0,0.00039,14]
[399596254,1766526646649,-800.0,0.00039,14]
[399596255,1766526646659,-800.0,0.00039,14]
[399596256,1766526646669,-800.0,0.00039,14]
[399596257,1766526646679,-800.0,0.00039,14]
[399596258,1766526646689,-890.09,0.00039,5]
[399596259,1766526646699,-875.36,0.00039,5]
[399596260,1766526646708,-868.17,0.00039,5]
[399596261,1766526646718,-872.49,0.00039,5]
[399596262,1766526646728,-150.0,0.00039025,7]
[399596263,1766526646738,-150.0,0.00039025,7]
[399596264,1766526646747,-150.0,0.00039025,7]
[399596265,1766526646758,-150.0,0.00039025,7]
[399596266,1766526646774,-150.0,0.00039036,7]
[399596267,1766526646783,-150.0,0.00039039,7]
[399596268,1766526646793,-216.82,0.00039041,37]
[399596269,1766526646803,-150.0,0.00039048,7]
[399596270,1766526646813,-322.777,0.00039071,30]
[399596271,1766526646823,-150.0,0.00039101,7]
[399596272,1766526646833,-150.0,0.00039101,7]
[399596273,1766526646843,-150.0,0.00039101,7]
[399596274,1766526646853,-150.0,0.00039114,7]
[399596275,1766526646863,-150.0,0.00039127,7]
[399596276,1766526646873,-150.0,0.00039148,7]
[399596277,1766526646883,-381.6,0.000392,14]
[399596278,1766526646894,-150.0,0.00039203,7]
[399596279,1766526646904,-150.0,0.00039203,7]
[399596280,1766526646914,-150.0,0.00039218,7]
[399596281,1766526646924,-150.0,0.00039234,7]
[399596282,1766526646935,-1349.4,0.0003925,6]
[399596283,1766526646946,-150.0,0.00039254,7]
[399596284,1766526646956,-150.0,0.00039258,7]
[399596285,1766526646966,-322.777,0.00039271,30]
[399596286,1766526646977,-1000.0,0.00039284,30]
[399596287,1766526646987,-150.0,0.00039292,7]
[399596288,1766526646996,-283.14570521,0.00039305,2]
[399596289,1766526647006,-150.0,0.00039309,7]
[399596290,1766526647016,-792.59499024,0.00039334,2]
[399596291,1766526647028,-150.0,0.00039346,7]
[399596292,1766526647039,-150.0,0.00039368,7]
[399596293,1766526647049,-150.0,0.00039381,7]
[399596294,1766526647059,-150.0,0.00039381,7]
[399596295,1766526647070,-150.0,0.000394,7]
[399596296,1766526647080,-150.0,0.00039407,7]
[399596297,1766526647090,-150.0,0.0003942,7]
[399596298,1766526647102,-600.0,0.00039452,30]
[399596299,1766526647113,-150.0,0.0003947,7]
[399596300,1766526647123,-322.777,0.00039471,30]
[399596301,1766526647138,-150.0,0.00039477,7]
[399596302,1766526647148,-150.0,0.00039491,7]
[399596303,1766526647158,-150.0,0.0003956,7]
[399596304,1766526647168,-150.0,0.0003956,7]
[399596305,1766526647178,-150.0,0.0003956,7]
[399596306,1766526647188,-150.0,0.0003956,7]
[399596307,1766526647198,-150.0,0.0003956,7]
[399596308,1766526647209,-2139.33411345,0.00039573,2]
[399596309,1766526647219,-6283.74202339,0.00039573,2]
[399596310,1766526647229,-1349.4,0.00039578,6]
[399596311,1766526647239,-150.0,0.00039582,7]
[399596312,1766526647249,-150.0,0.00039587,7]
[399596313,1766526647259,-150.0,0.00039606,7]
[399596314,1766526647269,-150.0,0.00039649,7]
[399596315,1766526647279,-322.777,0.00039671,30]
[399596316,1766526647289,-150.0,0.00039673,7]
[399596317,1766526647299,-300.240548,0.00039687,96]
[399596318,1766526647309,-150.0,0.00039697,7]
[399596319,1766526647319,-150.0,0.00039712,7]
[399596320,1766526647330,-150.0,0.00039712,7]
[399596321,1766526647340,-150.0,0.00039712,7]
[399596322,1766526647351,-216.82,0.00039726,38]
[399596323,1766526647361,-150.0,0.00039738,7]
[399596324,1766526647372,-150.0,0.00039738,7]
[399596325,1766526647383,-150.0,0.00039764,7]
[399596326,1766526647394,-150.0,0.00039792,7]
[399596327,1766526647404,-1000.0,0.00039795,11]
[399596328,1766526647415,-299.0,0.000398,2]
[399596329,1766526647425,-980.0,0.000398,2]
[399596330,1766526647768,-150.0,0.00039806,7]
[399596331,1766526647779,-150.0,0.00039827,7]
[399596332,1766526647790,-150.0,0.00039855,7]
[399596333,1766526647800,-150.0,0.00039865,7]
[399596334,1766526647810,-322.777,0.00039871,30]
[399596335,1766526647821,-459.45,0.000399,30]
[399596336,1766526647830,-151.48279639,0.000399,120]
[399596337,1766526647840,-151.48279639,0.000399,120]
[399596338,1766526647851,-151.48279639,0.000399,120]
[399596339,1766526647862,-1349.4,0.00039905,6]
[399596340,1766526647871,-150.0,0.00039916,7]
[399596341,1766526647881,-150.0,0.00039916,7]
[399596342,1766526647891,-150.0,0.00039916,7]
[399596343,1766526647901,-150.0,0.00039946,7]
[399596344,1766526647911,-150.0,0.00039978,7]
[399596345,1766526647920,-300.0,0.00039999,10]
[399596346,1766526647930,-666.0,0.00039999,30]
[399596347,1766526647940,-562.31056819,0.00039999,31]
[399596348,1766526647950,-600.0,0.0004,30]
[399596349,1766526647960,-172.14,0.0004,14]
[399596350,1766526647984,-150.0,0.0004,60]
[399596351,1766526647996,-200.0,0.0004,120]
[399596352,1766526648007,-150.0,0.00040005,7]
[399596353,1766526648018,-150.0,0.00040018,7]
[399596354,1766526648033,-150.0,0.00040026,7]
[399596355,1766526648045,-150.0,0.00040037,7]
[399596356,1766526648056,-322.777,0.00040071,30]
[399596357,1766526648066,-150.0,0.00040094,7]
[399596358,1766526648079,-150.0,0.00040094,7]
[399596359,1766526648091,-150.0,0.00040094,7]
[399596360,1766526648103,-150.0,0.00040094,7]
[399596361,1766526648114,-150.0,0.00040128,7]
[399596362,1766526648126,-150.0,0.00040135,7]
[399596363,1766526648136,-150.0,0.00040164,7]
[399596364,1766526648147,-150.0,0.00040171,7]
[399596365,1766526648157,-150.0,0.00040183,7]
[399596366,1766526648168,-150.0,0.00040201,7]
[399596367,1766526648178,-160.0,0.00040208,11]
[399596368,1766526648189,-150.0,0.00040219,7]
[399596369,1766526648199,-1349.4,0.00040233,6]
[399596370,1766526648209,-150.0,0.00040245,7]
[399596371,1766526648220,-322.777,0.00040271,30]
[399596372,1766526648231,-150.0,0.00040272,7]
[399596373,1766526648242,-150.0,0.00040272,7]
[399596374,1766526648253,-150.0,0.0004031,7]
[399596375,1766526648263,-150.0,0.00040323,7]
[399596376,1766526648273,-150.0,0.00040323,7]
[399596377,1766526648284,-150.0,0.00040323,7]
[399596378,1766526648295,-150.0,0.0004035,7]
[399596379,1766526648306,-150.0,0.00040355,7]
[399596380,1766526648316,-150.0,0.00040361,7]
[399596381,1766526648333,-162.82,0.000404,14]
[399596382,1766526648345,-395.96,0.000404,30]
[399596383,1766526648356,-150.0,0.00040401,7]
[399596384,1766526648367,-216.82,0.0004041,39]
[399596385,1766526648378,-283.14570521,0.00040426,2]
[399596386,1766526648389,-150.0,0.00040451,7]
[399596387,1766526648400,-150.0,0.00040451,7]
[399596388,1766526648412,-150.0,0.00040464,7]
[399596389,1766526648423,-322.777,0.00040471,30]
[399596390,1766526648434,-150.0,0.00040476,7]
[399596391,1766526648445,-150.0,0.00040492,7]
[399596392,1766526648457,-150.0,0.00040536,7]
[399596393,1766526648468,-150.0,0.0004054,7]
[399596394,1766526648479,-500.0,0.00040548,30]
[399596395,1766526648490,-1349.4,0.0004056,6]
[399596396,1766526648503,-150.0,0.00040574,7]
[399596397,1766526648514,-150.0,0.00040583,7]
[399596398,1766526648525,-150.0,0.00040629,7]
[399596399,1766526648535,-150.0,0.00040629,7]
[399596400,1766526648546,-150.0,0.00040629,7]
[399596401,1766526648558,-150.0,0.00040629,7]
[399596402,1766526648569,-150.0,0.00040629,7]
[399596403,1766526648580,-150.0,0.00040632,120]
[399596404,1766526648592,-322.777,0.00040671,30]
[399596405,1766526648604,-150.0,0.00040674,7]
[399596406,1766526648615,-150.0,0.00040684,7]
[399596407,1766526648626,-726.1806676,0.00040689,2]
[399596408,1766526648638,-1000.0,0.00040699,30]
[399596409,1766526648648,-150.0,0.00040718,7]
[399596410,1766526648660,-150.0,0.00040722,7]
[399596411,1766526648671,-150.0,0.00040765,7]
[399596412,1766526648688,-150.0,0.00040782,7]
[399596413,1766526648701,-150.0,0.00040793,7]
[399596414,1766526648714,-150.0,0.00040807,7]
[399596415,1766526648728,-150.0,0.00040807,7]
[399596416,1766526648740,-160.0,0.00040848,11]
[399596417,1766526648752,-150.0,0.00040856,7]
[399596418,1766526648763,-322.777,0.00040871,30]
[399596419,1766526648774,-1349.4,0.00040888,7]
[399596420,1766526648785,-150.0,0.00040896,7]
[399596421,1766526648797,-150.0,0.00040903,7]
[399596422,1766526648807,-300.0,0.00040904,120]
[399596423,1766526648818,-300.0,0.00040904,120]
[399596424,1766526648828,-300.0,0.00040904,120]
[399596425,1766526648839,-300.0,0.00040904,120]
[399596426,1766526648849,-300.0,0.00040904,120]
[399596427,1766526648860,-300.0,0.00040904,120]
[399596428,1766526648871,-300.0,0.00040904,120]
[399596429,1766526648881,-300.0,0.00040904,120]
[399596430,1766526648892,-300.0,0.00040904,120]
[399596431,1766526648903,-300.0,0.00040904,120]
[399596432,1766526648914,-300.0,0.00040904,120]
[399596433,1766526648924,-300.0,0.00040904,120]
[399596434,1766526648935,-300.0,0.00040904,120]
[399596435,1766526648946,-300.0,0.00040904,120]
[399596436,1766526648956,-300.0,0.00040904,120]
[399596437,1766526648967,-300.0,0.00040904,120]
[399596438,1766526648977,-300.0,0.00040904,120]
[399596439,1766526648988,-300.0,0.00040904,120]
[399596440,1766526648999,-300.0,0.00040904,120]
[399596441,1766526649010,-300.0,0.00040904,120]
[399596442,1766526649020,-300.0,0.00040904,120]
[399596443,1766526649033,-300.0,0.00040904,120]
[399596444,1766526649049,-300.0,0.00040904,120]
[399596445,1766526649060,-300.0,0.00040904,120]
[399596446,1766526649072,-300.0,0.00040904,120]
[399596447,1766526649083,-300.0,0.00040904,120]
[399596448,1766526649094,-300.0,0.00040904,120]
[399596449,1766526649106,-300.0,0.00040904,120]
[399596450,1766526649116,-300.0,0.00040904,120]
[399596451,1766526649127,-300.0,0.00040904,120]
[399596452,1766526649137,-300.0,0.00040904,120]
[399596453,1766526649148,-300.0,0.00040904,120]
[399596454,1766526649159,-300.0,0.00040904,120]
[399596455,1766526649170,-300.0,0.00040904,120]
[399596456,1766526649180,-300.0,0.00040904,120]
[399596457,1766526649191,-300.0,0.00040904,120]
[399596458,1766526649203,-300.0,0.00040904,120]
[399596459,1766526649213,-300.0,0.00040904,120]
[399596460,1766526649224,-300.0,0.00040904,120]
[399596461,1766526649236,-300.0,0.00040904,120]
[399596462,1766526649247,-300.0,0.00040904,120]
[399596463,1766526649258,-300.0,0.00040904,120]
[399596464,1766526649268,-300.0,0.00040904,120]
[399596465,1766526649279,-300.0,0.00040904,120]
[399596466,1766526649290,-300.0,0.00040904,120]
[399596467,1766526649301,-300.0,0.00040904,120]
[399596468,1766526649312,-300.0,0.00040904,120]
[399596469,1766526649323,-300.0,0.00040904,120]
[399596470,1766526649336,-150.0,0.00040908,7]
[399596471,1766526649347,-500.0,0.00040908,30]
[399596472,1766526649358,-300.0,0.00040932,120]
[399596473,1766526649369,-300.0,0.00040932,120]
[399596474,1766526649380,-300.0,0.00040932,120]
[399596475,1766526649390,-300.0,0.00040932,120]
[399596476,1766526649405,-300.0,0.00040932,120]
[399596477,1766526649416,-300.0,0.00040932,120]
[399596478,1766526649427,-300.0,0.00040932,120]
[399596479,1766526649439,-300.0,0.00040932,120]
[399596480,1766526649449,-300.0,0.00040932,120]
[399596481,1766526649460,-300.0,0.00040932,120]
[399596482,1766526649472,-300.0,0.00040932,120]
[399596483,1766526649482,-300.0,0.00040932,120]
[399596484,1766526649493,-300.0,0.00040932,120]
[399596485,1766526649504,-300.0,0.00040932,120]
[399596486,1766526649515,-300.0,0.00040932,120]
[399596487,1766526649526,-300.0,0.00040932,120]
[399596488,1766526649537,-300.0,0.00040932,120]
[399596489,1766526649547,-300.0,0.00040932,120]
[399596490,1766526649558,-300.0,0.00040932,120]
[399596491,1766526649569,-300.0,0.00040932,120]
[399596492,1766526649580,-300.0,0.00040932,120]
[399596493,1766526649591,-150.0,0.00040934,7]
[399596494,1766526649606,-150.0,0.00040934,7]
[399596495,1766526649617,-150.0,0.00040934,7]
[399596496,1766526649628,-150.0,0.00040947,7]
[399596497,1766526649639,-150.0,0.00040985,7]
[399596498,1766526649649,-150.0,0.00040985,7]
[399596499,1766526649659,-26736.0795,0.00040996,120]
[399596500,1766526649670,-300.0,0.00040999,10]
[399596501,1766526649681,-666.0,0.00040999,30]
[399596502,1766526649693,-150.0,0.00041,60]
[399596503,1766526649703,-395.96,0.00041,30]
[399596504,1766526649714,-150.0,0.00041013,7]
[399596505,1766526649725,-150.0,0.00041038,7]
[399596506,1766526649735,-150.0,0.00041056,7]
[399596507,1766526649746,-322.777,0.00041071,30]
[399596508,1766526649756,-150.0,0.00041074,7]
[399596509,1766526649767,-150.0,0.00041087,7]
[399596510,1766526649778,-150.0,0.00041094,7]
[399596511,1766526649791,-1969.0196,0.00041094,120]
[399596512,1766526649801,-300.0,0.00041095,10]
[399596513,1766526649812,-3627.4,0.00041095,120]
[399596514,1766526649822,-216.82,0.00041095,40]
[399596515,1766526649833,-1000.0,0.00041095,30]
[399596516,1766526649844,-1000.0,0.00041095,30]
[399596517,1766526649855,-1000.0,0.00041095,30]
[399596518,1766526649866,-1000.0,0.00041095,13]
[399596519,1766526649876,-1000.0,0.00041095,30]
[399596520,1766526649887,-1000.0,0.00041095,30]
[399596521,1766526649898,-1000.0,0.00041095,30]
[399596522,1766526649908,-1000.0,0.00041095,30]
[399596523,1766526649919,-354.0,0.00041096,30]
[399596524,1766526649930,-444.60066123,0.00041096,2]
[399596525,1766526649943,-697.3,0.00041096,30]
[399596526,1766526649953,-151.0,0.00041096,120]
[399596527,1766526649964,-151.0,0.00041096,120]
[399596528,1766526649974,-151.0,0.00041096,120]
[399596529,1766526649985,-151.0,0.00041096,120]
[399596530,1766526649995,-151.0,0.00041096,120]
[399596531,1766526650006,-151.0,0.00041096,120]
[399596532,1766526650017,-1045.0,0.00041096,93]
[399596533,1766526650028,-150.0,0.00041122,30]
[399596534,1766526650041,-500.0,0.00041127,60]
[399596535,1766526650052,-400.0,0.00041127,60]
[399596536,1766526650063,-150.0,0.00041129,30]
[399596537,1766526650075,-150.0,0.00041163,30]
[399596538,1766526650086,-150.0,0.00041163,30]
[399596539,1766526650097,-150.0,0.00041163,30]
[399596540,1766526650109,-150.0,0.00041163,30]
[399596541,1766526650120,-500.0,0.00041182,30]
[399596542,1766526650130,-1349.4,0.00041215,7]
[399596543,1766526650141,-150.0,0.0004122,30]
[399596544,1766526650152,-150.0,0.00041232,30]
[399596545,1766526650163,-160.0,0.00041233,11]
[399596546,1766526650174,-160.0,0.00041233,11]
[399596547,1766526650199,-150.0,0.0004124,30]
[399596548,1766526650210,-150.0,0.00041252,30]
[399596549,1766526650222,-1075.9233,0.00041271,7]
[399596550,1766526650233,-150.0,0.0004128,30]
[399596551,1766526650245,-381.6,0.000413,14]
[399596552,1766526650257,-150.0,0.00041311,30]
[399596553,1766526650269,-150.0,0.00041342,30]
[399596554,1766526650280,-150.0,0.00041342,30]
[399596555,1766526650291,-150.0,0.00041342,30]
[399596556,1766526650303,-150.0,0.00041392,30]
[399596557,1766526650316,-200.0,0.000414,120]
[399596558,1766526650328,-150.0,0.00041402,30]
[399596559,1766526650339,-150.0,0.00041431,30]
[399596560,1766526650351,-150.0,0.00041451,30]
[399596561,1766526650362,-500.0,0.00041456,30]
[399596562,1766526650373,-150.0,0.00041466,30]
[399596563,1766526650384,-322.777,0.00041471,30]
[399596564,1766526650395,-3013.20515429,0.00041488,7]
[399596565,1766526650407,-150.0,0.00041493,30]
[399596566,1766526650418,-172.14,0.000415,14]
[399596567,1766526650428,-150.0,0.00041502,30]
[399596568,1766526650440,-14755.00988868,0.00041502,30]
[399596569,1766526650451,-150.0,0.00041502,30]
[399596570,1766526650461,-1226.4370282,0.00041502,30]
[399596571,1766526650473,-150.0,0.00041502,30]
[399596572,1766526650484,-663.74436188,0.00041502,30]
[399596573,1766526650496,-150.0,0.0004152,30]
[399596574,1766526650712,-150.0,0.0004152,30]
[399596575,1766526650723,-1349.4,0.00041543,7]
[399596576,1766526650734,-150.0,0.00041545,30]
[399596577,1766526650745,-150.0,0.00041545,30]
[399596578,1766526650755,-150.0,0.00041545,30]
[399596579,1766526650766,-283.14570521,0.00041546,4]
[399596580,1766526650776,-150.0,0.00041561,30]
[399596581,1766526650787,-150.0,0.00041584,30]
[399596582,1766526650798,-150.0,0.00041609,30]
[399596583,1766526650808,-150.0,0.00041651,30]
[399596584,1766526650819,-150.0,0.00041671,30]
[399596585,1766526650828,-322.777,0.00041671,30]
[399596586,1766526650839,-150.0,0.00041675,30]
[399596587,1766526650849,-150.0,0.00041698,30]
[399596588,1766526650859,-150.0,0.00041698,30]
[399596589,1766526650869,-150.0,0.00041698,30]
[399596590,1766526650880,-150.0,0.00041698,30]
[399596591,1766526650890,-150.0,0.00041698,30]
[399596592,1766526650900,-230.4,0.000417,14]
[399596593,1766526650910,-160.0,0.00041702,11]
[399596594,1766526650920,-162.0328086,0.00041725,2]
[399596595,1766526650930,-500.0,0.0004173,30]
[399596596,1766526650940,-1000.0,0.00041756,8]
[399596597,1766526650950,-150.0,0.00041766,30]
[399596598,1766526650960,-1047.034688,0.00041779,14]
[399596599,1766526650969,-1047.034688,0.00041779,14]
[399596600,1766526650979,-1047.034688,0.00041779,14]
[399596601,1766526650989,-1047.034688,0.00041779,14]
[399596602,1766526650999,-1047.034688,0.00041779,14]
[399596603,1766526651009,-1047.034688,0.00041779,14]
[399596604,1766526651018,-1047.034688,0.00041779,14]
[399596605,1766526651031,-1047.034688,0.00041779,14]
[399596606,1766526651041,-1047.034688,0.00041779,14]
[399596607,1766526651051,-1047.034688,0.00041779,14]
[399596608,1766526651061,-1047.034688,0.00041779,14]
[399596609,1766526651071,-1047.034688,0.00041779,14]
[399596610,1766526651081,-1000.0,0.00041779,30]
[399596611,1766526651091,-216.82,0.0004178,41]
[399596612,1766526651102,-150.0,0.0004178,30]
[399596613,1766526651113,-150.0,0.00041787,30]
[399596614,1766526651123,-150.0,0.00041837,30]
[399596615,1766526651133,-150.0,0.00041851,30]
[399596616,1766526651143,-150.0,0.00041857,30]
[399596617,1766526651153,-200.0,0.0004186,120]
[399596618,1766526651162,-322.777,0.00041871,30]
[399596619,1766526651172,-160.0,0.00041873,11]
[399596620,1766526651182,-150.0,0.00041876,30]
[399596621,1766526651192,-150.0,0.00041876,30]
[399596622,1766526651202,-150.0,0.0004189,30]
[399596623,1766526651212,-300.0,0.00041899,30]
[399596624,1766526651222,-150.0,0.00041912,30]
[399596625,1766526651232,-150.0,0.00041948,30]
[399596626,1766526651242,-150.0,0.00041965,30]
[399596627,1766526651251,-300.0,0.00041999,30]
[399596628,1766526651261,-1000.0,0.00041999,21]
[399596629,1766526651271,-1000.0,0.00041999,30]
[399596630,1766526651281,-1000.0,0.00041999,22]
[399596631,1766526651291,-150.0,0.00042,30]
[399596632,1766526651301,-10000.0,0.00042,120]
[399596633,1766526651311,-151.0,0.00042,120]
[399596634,1766526651320,-151.0,0.00042,120]
[399596635,1766526651331,-151.0,0.00042,120]
[399596636,1766526651342,-150.0,0.00042,60]
[399596637,1766526651352,-10000.0,0.00042,120]
[399596638,1766526651362,-200.0,0.00042,120]
[399596639,1766526651371,-150.0,0.00042,120]
[399596640,1766526651381,-10000.0,0.00042,110]
[399596641,1766526651392,-150.0,0.00042003,30]
[399596642,1766526651402,-500.0,0.00042004,30]
[399596643,1766526651413,-160.0,0.00042019,16]
[399596644,1766526651423,-150.0,0.00042023,30]
[399596645,1766526651434,-150.0,0.00042039,30]
[399596646,1766526651445,-150.0,0.00042054,30]
[399596647,1766526651455,-150.0,0.00042054,30]
[399596648,1766526651465,-322.777,0.00042071,30]
[399596649,1766526651475,-150.0,0.00042109,30]
[399596650,1766526651486,-150.0,0.0004213,30]
[399596651,1766526651496,-150.0,0.00042143,30]
[399596652,1766526651505,-150.0,0.00042156,30]
[399596653,1766526651516,-150.0,0.00042156,30]
[399596654,1766526651527,-150.0,0.00042156,30]
[399596655,1766526651537,-150.0,0.00042166,14]
[399596656,1766526651547,-3627.4,0.00042191,120]
[399596657,1766526651557,-160.0,0.00042193,16]
[399596658,1766526651567,-1000.0,0.00042193,14]
[399596659,1766526651577,-150.0,0.00042194,14]
[399596660,1766526651587,-1000.0,0.00042201,14]
[399596661,1766526651597,-1000.0,0.00042205,14]
[399596662,1766526651606,-150.0,0.00042209,30]
[399596663,1766526651615,-150.0,0.00042219,30]
[399596664,1766526651626,-150.0,0.00042221,30]